bitfinex-derivatives/quotes_SOLF0:USTF0_20250425
["timestamp","ask_amount","ask_price","bid_price","bid_amount"]
[1745570177794,5.06958285,154.31,154.27,11.54938285]
[1745570178096,5.06958285,154.31,154.27,5.06958285]
[1745570178596,11.54808285,154.31,154.28,6.4794]
[1745570178793,3.845,154.33,154.3,5.06958285]
[1745570178993,28.46958285,154.37,154.32,5.06958285]
[1745570179492,6.4769,154.35,154.32,11.54728285]
[1745570179787,28.46958285,154.37,154.32,11.54728285]
[1745570179788,28.46958285,154.37,154.32,5.06958285]
[1745570179991,6.4763,154.36,154.33,6.4772]
[1745570181501,6.4767,154.35,154.33,6.4772]
[1745570181800,5.06958285,154.37,154.33,6.4772]
[1745570182000,6.4766,154.36,154.33,6.4772]
[1745570182401,5.06958285,154.37,154.33,6.4772]
[1745570182701,5.8157,154.38,154.34,5.06958285]
[1745570183702,6.476,154.37,154.34,11.54638285]
[1745570183902,11.64212,154.39,154.36,5.06958285]
[1745570184098,11.64212,154.39,154.38,5.06958285]
[1745570184302,11.64212,154.39,154.38,11.54498285]
[1745570184603,11.64212,154.39,154.38,5.06958285]
[1745570184901,11.64212,154.39,154.38,11.54498285]
[1745570191099,11.64212,154.39,154.38,5.06958285]
[1745570194408,11.64212,154.39,154.38,11.54498285]
[1745570198509,11.64212,154.39,154.38,6.4754]
[1745570200413,11.64212,154.39,154.37,6.4756]
[1745570200915,11.64212,154.39,154.36,5.06958285]
[1745570201719,11.64212,154.39,154.37,6.4755]
[1745570202017,5.06958285,154.38,154.32,5.06958285]
[1745570202215,5.06958285,154.36,154.32,11.54738285]
[1745570202710,6.477,154.35,154.32,6.4778]
[1745570202920,5.06958285,154.36,154.31,29.8581]
[1745570203215,11.54708285,154.34,154.31,29.8581]
[1745570203411,5.06958285,154.34,154.31,6.4781]
[1745570204114,6.4778,154.33,154.29,5.06958285]
[1745570204713,6.4778,154.33,154.3,6.4785]
[1745570207517,6.4778,154.33,154.31,6.4783]
[1745570207918,6.4778,154.33,154.29,5.06958285]
[1745570208116,6.4778,154.33,154.3,6.4785]
[1745570208717,6.4779,154.32,154.29,11.54858285]
[1745570208916,6.4779,154.32,154.29,5.06958285]
[1745570210117,6.4779,154.32,154.3,6.4785]
[1745570210619,6.4777,154.33,154.31,6.4783]
[1745570210919,5.06958285,154.34,154.29,5.06958285]
[1745570211119,11.54698285,154.34,154.31,6.4781]
[1745570211321,11.54698285,154.34,154.29,5.06958285]
[1745570211523,6.4774,154.34,154.29,5.06958285]
[1745570213522,6.4774,154.34,154.32,6.4778]
[1745570214624,6.4774,154.34,154.31,6.4782]
[1745570216520,6.4774,154.34,154.32,6.4779]
[1745570217624,10.2962,154.35,154.33,6.4775]
[1745570218324,5.06958285,154.37,154.31,5.06958285]
[1745570218525,5.06958285,154.38,154.33,5.06958285]
[1745570219027,5.06958285,154.38,154.35,6.4764]
[1745570219028,11.54518285,154.38,154.35,6.4764]
[1745570221522,11.54518285,154.38,154.33,5.06958285]
[1745570222329,6.4759,154.37,154.34,6.4769]
[1745570222629,6.4759,154.37,154.33,5.06958285]
[1745570222827,6.4759,154.37,154.34,6.477]
[1745570223125,6.4763,154.36,154.33,5.06958285]
[1745570223529,6.4763,154.36,154.33,11.54678285]
[1745570223927,6.4763,154.36,154.33,6.4772]
[1745570224431,5.06958285,154.36,154.3,5.06958285]
[1745570225229,5.06958285,154.34,154.29,28.44958285]
[1745570225631,3.817,154.33,154.29,28.44958285]
[1745570226126,6.4781,154.32,154.29,34.92858285]
[1745570227730,3.817,154.33,154.27,6.4798]
[1745570227933,5.06958285,154.32,154.26,28.44958285]
[1745570228431,6.479,154.3,154.27,11.54928285]
[1745570228931,6.4794,154.29,154.27,5.06958285]
[1745570229133,5.06958285,154.32,154.26,28.44958285]
[1745570229334,5.06958285,154.3,154.26,5.06958285]
[1745570229834,5.06958285,154.32,154.26,5.06958285]
[1745570230031,6.4793,154.29,154.26,11.54978285]
[1745570231036,6.4789,154.3,154.27,6.4799]
[1745570231532,6.4789,154.3,154.26,5.06958285]
[1745570231737,6.4785,154.31,154.26,5.06958285]
[1745570232134,6.4785,154.31,154.28,6.4796]
[1745570232541,6.4788,154.3,154.28,6.4796]
[1745570232737,5.06958285,154.32,154.28,6.4796]
[1745570233133,5.06958285,154.32,154.29,6.4791]
[1745570234438,5.06958285,154.32,154.28,11.54898285]
[1745570234735,5.06958285,154.32,154.28,5.06958285]
[1745570235438,6.4786,154.31,154.28,11.54898285]
[1745570236538,6.479,154.3,154.27,6.4798]
[1745570237143,6.4785,154.31,154.28,6.4795]
[1745570238839,11.54768285,154.32,154.29,6.4792]
[1745570240137,5.6439,154.33,154.27,23.38]
[1745570240343,11.64212,154.39,154.27,23.38]
[1745570240344,366.477,154.63,154.32,5.06958285]
[1745570240538,5.06958285,154.54,154.48,5.06958285]
[1745570240733,5.06958285,154.54,154.48,34.92048285]
[1745570241036,1.8767,154.55,154.5,5.06958285]
[1745570241241,1.8767,154.55,154.5,6.4703]
[1745570241437,1.8767,154.55,154.48,31.29585899]
[1745570241845,152.30342531,154.56,154.52,6.4694]
[1745570242235,152.30342531,154.56,154.48,31.29585899]
[1745570242734,3.8415,154.57,154.48,31.29585899]
[1745570243142,3.8415,154.57,154.49,6.4704]
[1745570243341,3.8415,154.57,154.5,23.36]
[1745570243543,10.3092,154.57,154.5,23.36]
[1745570244143,6.4679,154.56,154.5,23.36]
[1745570244942,10.3091,154.57,154.5,23.36]
[1745570245346,6.4679,154.56,154.5,23.36]
[1745570245539,3.8415,154.57,154.5,23.36]
[1745570245843,11.75735899,154.57,154.49,23.36]
[1745570246243,11.75735899,154.57,154.46,7.91585899]
[1745570246442,7.91585899,154.55,154.47,23.36]
[1745570246641,1.8457,154.54,154.47,23.36]
[1745570246845,6.4696,154.52,154.47,23.36]
[1745570247248,1.8457,154.54,154.47,23.36]
[1745570247448,6.4692,154.53,154.47,23.36]
[1745570247947,1.8457,154.54,154.48,7.91585899]
[1745570248648,1.8457,154.54,154.47,23.36]
[1745570249243,7.91585899,154.53,154.43,474.43585899]
[1745570249444,7.91585899,154.51,154.43,466.52]
[1745570249749,6.4716,154.48,154.42,23.36]
[1745570250242,7.91585899,154.49,154.42,23.36]
[1745570250548,6.4721,154.46,154.42,23.36]
[1745570252950,6.4725,154.45,154.42,23.36]
[1745570255353,3.8555,154.48,154.39,7.91585899]
[1745570255556,1.9133,154.47,154.4,23.36]
[1745570255854,6.4731,154.44,154.4,23.36]
[1745570257252,6.4731,154.44,154.4,29.8345]
[1745570257853,6.4731,154.44,154.4,6.4745]
[1745570258954,6.4726,154.45,154.41,6.4741]
[1745570259456,6.4726,154.45,154.42,6.4737]
[1745570259754,6.4726,154.45,154.39,31.27585899]
[1745570259957,6.4726,154.45,154.41,6.474]
[1745570260455,1.9133,154.47,154.38,6.4752]
[1745570260456,25.2733,154.47,154.38,6.4752]
[1745570260654,33.18915899,154.47,154.38,6.4752]
[1745570260955,6.474,154.42,154.38,6.4752]
[1745570261353,33.18915899,154.47,154.38,6.4752]
[1745570261554,6.4736,154.43,154.39,6.4749]
[1745570262356,6.473,154.44,154.4,6.4743]
[1745570264951,25.2733,154.47,154.42,6.4736]
[1745570265157,1.9133,154.47,154.42,7.91585899]
[1745570265755,6.4723,154.46,154.42,14.38945899]
[1745570266058,6.4728,154.45,154.41,29.8339]
[1745570267156,6.4728,154.45,154.42,6.4736]
[1745570268660,6.4729,154.44,154.41,29.8339]
[1745570268960,1.9133,154.47,154.41,23.36]
[1745570269260,6.4727,154.45,154.42,6.4737]
[1745570269961,7.91585899,154.46,154.38,23.36]
[1745570270162,31.27585899,154.46,154.38,23.36]
[1745570270462,6.474,154.42,154.38,23.36]
[1745570270962,6.474,154.42,154.38,31.27585899]
[1745570271356,23.36,154.46,154.38,31.27585899]
[1745570271561,6.4742,154.41,154.38,29.8352]
[1745570271855,23.36,154.46,154.38,23.36]
[1745570272260,23.36,154.46,154.38,31.27585899]
[1745570272761,6.4739,154.42,154.39,6.4748]
[1745570274663,23.36,154.46,154.38,37.75085899]
[1745570274863,23.36,154.46,154.38,31.27585899]
[1745570275267,6.4736,154.43,154.4,6.4745]
[1745570275762,23.36,154.46,154.38,31.27585899]
[1745570275962,6.4731,154.44,154.38,31.27585899]
[1745570276165,6.4731,154.44,154.4,7.91585899]
[1745570276665,1.9133,154.47,154.43,6.4733]
[1745570276860,3.8555,154.48,154.43,6.4733]
[1745570277061,6.4723,154.46,154.43,6.4733]
[1745570278464,6.4723,154.46,154.44,6.4729]
[1745570279865,6.4723,154.46,154.43,6.4731]
[1745570280060,6.4725,154.45,154.43,6.4731]
[1745570280267,6.4725,154.45,154.42,23.36]
[1745570280566,6.4725,154.45,154.42,29.8333]
[1745570280764,6.4725,154.45,154.42,23.36]
[1745570280960,6.4722,154.46,154.42,23.36]
[1745570281159,6.4722,154.46,154.43,6.4731]
[1745570282765,6.4728,154.45,154.42,29.8335]
[1745570284673,6.4722,154.46,154.43,6.4733]
[1745570284871,3.8555,154.48,154.42,23.36]
[1745570285373,6.4731,154.44,154.42,23.36]
[1745570287770,6.4731,154.44,154.42,29.8337]
[1745570289177,6.4733,154.43,154.42,23.36]
[1745570289774,5.714,154.48,154.42,23.36]
[1745570289969,6.473,154.44,154.42,29.8337]
[1745570290170,5.714,154.48,154.42,29.8337]
[1745570290976,6.4728,154.45,154.42,29.8337]
[1745570292178,6.473,154.44,154.42,23.36]
[1745570292377,5.07287615,154.47,154.42,23.36]
[1745570292578,5.07287615,154.45,154.41,5.07287615]
[1745570292878,5.07287615,154.45,154.39,34.90767615]
[1745570293080,6.474,154.42,154.39,34.90767615]
[1745570294182,6.474,154.42,154.4,6.4745]
[1745570294680,6.4735,154.43,154.4,6.4745]
[1745570294980,5.07287615,154.45,154.4,6.4745]
[1745570295180,6.474,154.42,154.39,34.90767615]
[1745570295683,6.474,154.42,154.39,11.54767615]
[1745570295881,6.474,154.42,154.4,6.4745]
[1745570296282,6.474,154.42,154.39,5.07287615]
[1745570296583,6.474,154.42,154.39,11.54757615]
[1745570298283,6.4742,154.41,154.39,11.54757615]
[1745570298883,6.4738,154.42,154.4,6.4746]
[1745570299183,6.4738,154.42,154.39,5.07287615]
[1745570299486,5.07287615,154.45,154.39,11.54757615]
[1745570299683,5.07287615,154.45,154.39,5.07287615]
[1745570299986,6.4741,154.41,154.39,11.54767615]
[1745570300378,5.07287615,154.43,154.39,5.07287615]
[1745570300684,5.07287615,154.41,154.36,5.07287615]
[1745570300880,5.07287615,154.41,154.35,23.34]
[1745570300881,28.41287615,154.43,154.38,5.07287615]
[1745570301080,6.4744,154.41,154.38,5.07287615]
[1745570301483,6.4744,154.41,154.38,11.54787615]
[1745570301885,6.4744,154.41,154.38,5.07287615]
[1745570302179,5.714,154.48,154.4,5.07287615]
[1745570302481,3.8555,154.48,154.44,5.07287615]
[1745570302681,10.327,154.48,154.46,5.07287615]
[1745570303985,3.8555,154.48,154.46,5.07287615]
[1745570305487,3.8555,154.48,154.44,5.07287615]
[1745570305887,6.4723,154.46,154.44,5.07287615]
[1745570306988,6.4718,154.47,154.44,5.07287615]
[1745570307888,6.4718,154.47,154.44,11.54567615]
[1745570308490,6.472,154.46,154.44,5.07287615]
[1745570309383,3.8555,154.48,154.36,30.21674248]
[1745570309384,5.07287615,154.45,154.4,5.07287615]
[1745570309583,3.8555,154.48,154.38,23.34]
[1745570309584,5.07287615,154.47,154.42,5.07287615]
[1745570309989,6.4728,154.45,154.42,5.07287615]
[1745570312489,6.4728,154.45,154.42,11.54657615]
[1745570313194,6.4729,154.44,154.42,11.54657615]
[1745570313588,8.92837615,154.48,154.42,5.07287615]
[1745570313894,3.8555,154.48,154.44,5.07287615]
[1745570314192,6.4719,154.47,154.44,5.07287615]
[1745570314693,6.4719,154.47,154.44,11.54557615]
[1745570314894,3.8555,154.48,154.46,5.07287615]
[1745570315090,3.8555,154.48,154.46,11.54467615]
[1745570315292,3.8555,154.48,154.46,5.07287615]
[1745570315593,10.327,154.48,154.46,5.07287615]
[1745570317091,6.4716,154.47,154.46,5.07287615]
[1745570317596,3.8555,154.48,154.46,5.07287615]
[1745570317894,10.3269,154.48,154.46,5.07287615]
[1745570318499,6.4716,154.47,154.46,5.07287615]
[1745570319495,8.3865,154.49,154.47,6.4716]
[1745570319696,6.4708,154.49,154.47,6.4716]
[1745570320398,6.4708,154.49,154.46,11.54467615]
[1745570320600,5.07287615,154.52,154.46,5.07287615]
[1745570321000,6.4714,154.48,154.46,5.07287615]
[1745570323100,6.4714,154.48,154.46,11.54487615]
[1745570323897,6.4714,154.48,154.46,6.472]
[1745570324103,6.4717,154.47,154.45,6.4723]
[1745570324303,5.07287615,154.48,154.44,23.34]
[1745570324502,5.07287615,154.48,154.42,5.07287615]
[1745570326010,6.4721,154.46,154.44,6.4726]
[1745570326608,6.4725,154.45,154.43,6.4731]
[1745570326808,5.07287615,154.48,154.42,5.07287615]
[1745570327310,7.05297615,154.48,154.42,5.07287615]
[1745570327509,5.07287615,154.44,154.41,23.34]
[1745570328310,6.4736,154.43,154.41,23.34]
[1745570328907,6.4736,154.43,154.41,29.8141]
[1745570329704,6.4736,154.43,154.4,5.07287615]
[1745570329910,6.4737,154.42,154.4,6.4746]
[1745570330305,6.4737,154.42,154.35,473.65418562]
[1745570330306,6.4746,154.4,154.37,28.41287615]
[1745570330611,5.07287615,154.4,154.35,12.62706177]
[1745570331013,6.4752,154.39,154.36,6.4762]
[1745570331412,6.4752,154.39,154.35,12.62706177]
[1745570331611,6.4752,154.39,154.36,6.4762]
[1745570331816,5.07287615,154.4,154.35,12.62706177]
[1745570332114,5.07287615,154.42,154.37,5.07287615]
[1745570332309,6.4742,154.41,154.37,5.07287615]
[1745570332911,6.4742,154.41,154.38,6.4752]
[1745570336713,11.54677615,154.42,154.39,6.4747]
[1745570339213,6.4742,154.41,154.39,6.4747]
[1745570339812,6.4742,154.41,154.38,6.4753]
[1745570340513,1.9084,154.43,154.39,5.07287615]
[1745570341611,6.4739,154.42,154.39,11.54767615]
[1745570342815,8.3819,154.43,154.4,6.4745]
[1745570343815,5.07287615,154.44,154.39,5.07287615]
[1745570344117,8.90317615,154.47,154.41,5.07287615]
[1745570344519,6.4722,154.46,154.43,6.4731]
[1745570344917,6.4722,154.46,154.41,5.07287615]
[1745570345920,6.4722,154.46,154.43,6.4731]
[1745570346617,6.4722,154.46,154.41,5.07287615]
[1745570347014,15.37497615,154.47,154.41,5.07287615]
[1745570347310,15.37497615,154.47,154.43,5.07287615]
[1745570347720,6.93067615,154.47,154.45,6.4722]
[1745570348018,29.8114,154.48,154.45,5.07287615]
[1745570348219,6.4714,154.48,154.45,5.07287615]
[1745570348719,6.4714,154.48,154.45,11.54517615]
[1745570348918,6.4714,154.48,154.45,5.07287615]
[1745570349619,5.07287615,154.49,154.45,5.07287615]
[1745570349620,6.4709,154.49,154.46,6.4716]
[1745570351320,6.4714,154.48,154.45,11.54517615]
[1745570351721,6.4714,154.48,154.45,5.07287615]
[1745570352323,6.4714,154.48,154.45,11.54527615]
[1745570353320,6.4709,154.49,154.46,6.4718]
[1745570356927,5.07287615,154.48,154.42,23.34]
[1745570357123,5.07287615,154.48,154.43,5.07287615]
[1745570357325,6.4729,154.44,154.43,5.07287615]
[1745570357621,5.07287615,154.48,154.39,23.34]
[1745570357817,5.07287615,154.48,154.42,5.07287615]
[1745570358013,23.34,154.47,154.42,5.07287615]
[1745570358220,1.845,154.46,154.42,5.07287615]
[1745570358822,6.4728,154.45,154.42,11.54637615]
[1745570359822,6.4728,154.45,154.43,6.4731]
[1745570360224,6.4731,154.44,154.42,11.54637615]
[1745570360823,6.4727,154.45,154.43,6.4733]
[1745570362319,6.4727,154.45,154.42,11.54647615]
[1745570362528,6.473,154.44,154.42,11.54647615]
[1745570362722,1.845,154.46,154.42,11.54647615]
[1745570363222,6.4727,154.45,154.42,11.54647615]
[1745570363421,6.4727,154.45,154.43,6.4733]
[1745570364524,6.4722,154.46,154.44,11.54557615]
[1745570367526,6.4722,154.46,154.44,5.07287615]
[1745570368425,6.4722,154.46,154.44,11.54577615]
[1745570368928,6.4725,154.45,154.44,5.07287615]
[1745570369126,5.07287615,154.46,154.42,5.07287615]
[1745570369328,23.34,154.47,154.37,5.07287615]
[1745570369329,5.07287615,154.44,154.37,5.07287615]
[1745570369527,5.07287615,154.41,154.37,11.54847615]
[1745570370028,6.4748,154.4,154.37,11.54847615]
[1745570371122,6.4748,154.4,154.38,6.4753]
[1745570372029,6.4748,154.4,154.37,11.54857615]
[1745570372730,6.4751,154.39,154.37,11.54857615]
[1745570374831,6.4748,154.4,154.38,6.4753]
[1745570376033,6.475,154.39,154.37,5.07287615]
[1745570377231,6.475,154.39,154.37,11.54847615]
[1745570379639,6.4754,154.38,154.37,5.07287615]
[1745570379934,5.07287615,154.41,154.37,5.07287615]
[1745570380238,6.4754,154.38,154.37,5.07287615]
[1745570380839,6.4754,154.38,154.35,34.88927615]
[1745570381032,6.4754,154.38,154.35,28.41287615]
[1745570381543,6.476,154.37,154.35,5.07287615]
[1745570382639,6.476,154.37,154.35,11.54927615]
[1745570382935,6.4756,154.38,154.35,11.54927615]
[1745570383140,5.07287615,154.41,154.35,5.07287615]
[1745570383433,6.4753,154.39,154.35,5.07287615]
[1745570383739,5.07287615,154.41,154.35,5.07287615]
[1745570384538,23.34,154.42,154.37,5.07287615]
[1745570384739,1.9989,154.43,154.41,5.07287615]
[1745570385140,1.901,154.45,154.41,5.07287615]
[1745570385341,1.901,154.45,154.43,5.07287615]
[1745570387436,1.8701,154.48,154.45,6.4722]
[1745570387640,1.8701,154.48,154.46,5.07287615]
[1745570387939,8.3416,154.48,154.46,5.07287615]
[1745570388253,1.8701,154.48,154.46,11.54487615]
[1745570389840,6.4704,154.5,154.47,6.4716]
[1745570390340,34.88297615,154.51,154.47,6.4716]
[1745570391035,6.4704,154.5,154.47,6.4716]
[1745570391642,34.88297615,154.51,154.47,6.4716]
[1745570391842,34.88297615,154.51,154.48,6.4712]
[1745570392141,28.41287615,154.51,154.46,5.07287615]
[1745570393043,6.4704,154.5,154.47,6.4714]
[1745570393247,28.41287615,154.51,154.46,5.07287615]
[1745570394242,34.88297615,154.51,154.48,6.4712]
[1745570394942,28.41287615,154.51,154.48,6.4712]
[1745570395643,34.88297615,154.51,154.48,6.4712]
[1745570396941,29.8101,154.51,154.48,6.4712]
[1745570397146,23.34,154.51,154.49,6.4705]
[1745570397446,3.7544,154.52,154.49,6.4705]
[1745570397854,10.224,154.52,154.49,6.4705]
[1745570398040,3.7544,154.52,154.48,6.4711]
[1745570398240,5.07287615,154.51,154.45,28.41287615]
[1745570398847,5.07287615,154.51,154.47,6.4715]
[1745570398848,6.4706,154.5,154.47,6.4715]
[1745570399149,23.34,154.5,154.45,5.07287615]
[1745570399448,6.471,154.49,154.46,6.472]
[1745570400750,29.8105,154.5,154.47,6.4716]
[1745570401050,23.34,154.5,154.47,5.07287615]
[1745570401344,6.4701,154.51,154.47,5.07287615]
[1745570401947,6.4701,154.51,154.48,6.471]
[1745570402250,6.4701,154.51,154.47,5.07287615]
[1745570402452,6.4701,154.51,154.47,11.54417615]
[1745570402749,6.4705,154.5,154.47,11.54417615]
[1745570403750,6.4708,154.49,154.47,5.07287615]
[1745570404050,3.7544,154.52,154.47,5.07287615]
[1745570404453,5.07287615,154.49,154.45,5.07287615]
[1745570405154,11.54387615,154.49,154.46,6.4719]
[1745570405354,5.07287615,154.49,154.45,5.07287615]
[1745570405853,6.4714,154.48,154.45,11.54517615]
[1745570406055,5.07287615,154.49,154.45,5.07287615]
[1745570406654,5.07287615,154.51,154.45,5.07287615]
[1745570407153,5.07287615,154.51,154.47,5.07287615]
[1745570407354,6.4708,154.5,154.47,11.54427615]
[1745570409254,6.4708,154.49,154.47,5.07287615]
[1745570409553,5.07287615,154.51,154.47,5.07287615]
[1745570409954,5.07287615,154.51,154.47,11.54437615]
[1745570410756,6.4708,154.5,154.47,11.54437615]
[1745570411556,6.4709,154.49,154.47,5.07287615]
[1745570412361,6.4705,154.5,154.47,11.54447615]
[1745570412662,5.07287615,154.51,154.47,11.54447615]
[1745570412864,5.07287615,154.51,154.47,5.07287615]
[1745570413264,6.4705,154.5,154.47,5.07287615]
[1745570413863,6.4708,154.49,154.47,5.07287615]
[1745570415063,3.7544,154.52,154.47,5.07287615]
[1745570415365,3.7544,154.52,154.49,5.07287615]
[1745570415566,10.224,154.52,154.49,11.54347615]
[1745570416464,6.4696,154.52,154.49,11.54347615]
[1745570416663,6.4696,154.52,154.5,6.4704]
[1745570416965,6.4696,154.52,154.49,5.07287615]
[1745570417265,6.47,154.51,154.49,5.07287615]
[1745570417766,6.47,154.51,154.49,11.54347615]
[1745570418371,23.34,154.53,154.46,23.32]
[1745570418372,5.07287615,154.52,154.46,23.32]
[1745570418568,5.07287615,154.5,154.46,23.32]
[1745570418768,5.07287615,154.52,154.47,5.07287615]
[1745570419068,6.4706,154.5,154.47,11.54447615]
[1745570419567,6.4701,154.51,154.47,5.07287615]
[1745570420267,6.4701,154.51,154.49,5.07287615]
[1745570420668,6.4704,154.5,154.49,5.07287615]
[1745570420866,23.34,154.53,154.49,5.07287615]
[1745570421268,6.4702,154.51,154.49,5.07287615]
[1745570422267,6.4704,154.5,154.49,5.07287615]
[1745570422470,23.34,154.53,154.49,5.07287615]
[1745570422768,6.4702,154.51,154.49,5.07287615]
[1745570423070,23.32,154.56,154.49,5.07287615]
[1745570423266,6.4699,154.52,154.49,5.07287615]
[1745570423571,6.4699,154.52,154.49,11.54347615]
[1745570425373,5.07287615,154.54,154.49,5.07287615]
[1745570425670,5.07287615,154.52,154.47,5.07287615]
[1745570425974,6.4706,154.5,154.47,11.54427615]
[1745570426171,5.07287615,154.52,154.47,5.07287615]
[1745570426571,6.4702,154.51,154.48,6.4711]
[1745570426772,6.4702,154.51,154.47,5.07287615]
[1745570427072,23.32,154.56,154.49,5.07287615]
[1745570427372,28.39287615,154.56,154.5,6.4701]
[1745570428573,6.4693,154.53,154.5,6.4701]
[1745570431074,6.4693,154.53,154.49,5.07287615]
[1745570431075,6.4696,154.52,154.49,11.54347615]
[1745570431374,5.07287615,154.54,154.49,5.07287615]
[1745570432175,6.4699,154.52,154.49,11.54347615]
[1745570432772,6.47,154.51,154.49,11.54347615]
[1745570432972,5.07287615,154.54,154.49,11.54347615]
[1745570433478,6.4698,154.52,154.49,11.54347615]
[1745570433682,5.07287615,154.54,154.49,5.07287615]
[1745570433869,6.4702,154.51,154.49,5.07287615]
[1745570434778,6.4702,154.51,154.49,11.54367615]
[1745570434975,6.4697,154.52,154.49,11.54367615]
[1745570435272,5.07287615,154.55,154.49,5.07287615]
[1745570435477,6.4682,154.56,154.53,5.07287615]
[1745570436078,6.4682,154.56,154.53,11.54187615]
[1745570436277,6.4684,154.55,154.53,11.54187615]
[1745570439787,6.4688,154.54,154.52,5.07287615]
[1745570439984,5.07287615,154.54,154.48,5.07287615]
[1745570440484,6.47,154.51,154.48,5.07287615]
[1745570440679,5.07287615,154.52,154.47,5.07287615]
[1745570440881,5.07287615,154.52,154.46,28.39287615]
[1745570441086,5.07287615,154.52,154.48,6.4712]
[1745570441087,6.4702,154.51,154.48,6.4712]
[1745570441986,6.4706,154.5,154.47,6.4716]
[1745570442187,6.4706,154.5,154.46,28.39287615]
[1745570442487,6.4706,154.5,154.47,6.4713]
[1745570442686,6.4712,154.49,154.46,28.39287615]
[1745570443489,6.4712,154.48,154.46,28.39287615]
[1745570444190,6.4712,154.48,154.46,5.07287615]
[1745570444383,6.4712,154.48,154.45,11.54507615]
[1745570444585,6.4719,154.47,154.44,5.07287615]
[1745570445089,6.4719,154.47,154.45,6.4724]
[1745570446190,6.4713,154.48,154.45,6.4724]
[1745570446487,6.4713,154.48,154.44,5.07287615]
[1745570446990,6.4713,154.48,154.45,6.4723]
[1745570447290,6.4713,154.48,154.44,5.07287615]
[1745570447591,6.4713,154.48,154.45,6.4722]
[1745570448495,6.4717,154.47,154.45,6.4722]
[1745570448886,23.32,154.51,154.42,5.07287615]
[1745570449091,5.07287615,154.46,154.42,5.07287615]
[1745570449292,5.07287615,154.46,154.4,28.39287615]
[1745570449594,6.4731,154.44,154.41,6.4739]
[1745570449891,5.07287615,154.46,154.41,6.4739]
[1745570450091,5.07287615,154.46,154.4,28.39287615]
[1745570450291,5.07287615,154.44,154.4,5.07287615]
[1745570450595,6.4736,154.43,154.4,11.54737615]
[1745570451491,6.4736,154.43,154.4,5.07287615]
[1745570451688,6.4738,154.42,154.4,5.07287615]
[1745570451894,6.4738,154.42,154.4,11.54737615]
[1745570452193,5.07287615,154.44,154.4,5.07287615]
[1745570452594,6.4735,154.43,154.41,6.4741]
[1745570453892,6.4735,154.43,154.4,11.54727615]
[1745570454193,5.07287615,154.44,154.4,5.07287615]
[1745570454194,6.4731,154.44,154.4,5.07287615]
[1745570454396,6.4731,154.44,154.41,6.4739]
[1745570454895,6.4733,154.43,154.41,6.4739]
[1745570455095,6.4733,154.43,154.4,11.54727615]
[1745570455892,5.07287615,154.45,154.4,11.54727615]
[1745570456096,6.4738,154.42,154.39,6.4748]
[1745570456395,6.4738,154.42,154.38,5.07287615]
[1745570457297,6.4738,154.42,154.4,6.4745]
[1745570457599,11.54637615,154.43,154.38,5.07287615]
[1745570458499,11.54637615,154.43,154.4,6.4743]
[1745570460299,6.4737,154.42,154.4,6.4743]
[1745570460599,5.07287615,154.43,154.38,5.07287615]
[1745570460802,11.54647615,154.43,154.38,5.07287615]
[1745570461203,5.07287615,154.45,154.4,5.07287615]
[1745570461395,6.4724,154.46,154.42,5.07287615]
[1745570461594,28.39287615,154.47,154.42,5.07287615]
[1745570461796,28.39287615,154.47,154.43,6.4732]
[1745570461998,6.4725,154.45,154.42,5.07287615]
[1745570462193,5.07287615,154.45,154.41,23.32]
[1745570462399,5.07287615,154.45,154.41,29.794]
[1745570462698,6.4731,154.44,154.41,23.32]
[1745570462899,5.07287615,154.45,154.42,6.4737]
[1745570463096,6.4729,154.44,154.41,23.32]
[1745570463401,6.4729,154.44,154.41,29.7938]
[1745570463803,5.07287615,154.45,154.41,23.32]
[1745570464098,5.07287615,154.43,154.38,5.07287615]
[1745570464401,5.07287615,154.43,154.39,6.4748]
[1745570465203,6.4741,154.42,154.39,6.4748]
[1745570465403,5.07287615,154.43,154.39,6.4748]
[1745570465899,6.4738,154.42,154.39,6.4748]
[1745570466397,6.4742,154.41,154.38,11.54807615]